fUST/lending_fUST_20251214
["ID","MTS","AMOUNT","RATE_DAILY","PERIOD"]
[398445596,1765657845883,-8657.58372646,0.00021604,2]
[398445597,1765657845897,-194874.24225089,0.00021604,2]
[398445598,1765657862200,150.69,0.000134,2]
[398445599,1765657877473,150.0,0.00010288,2]
[398445600,1765657878440,150.0,0.00010778,2]
[398445601,1765657878767,150.0,0.00011268,2]
[398445602,1765657879198,150.0,0.00011758,2]
[398445603,1765657879584,150.0,0.00012248,2]
[398445604,1765657879968,150.0,0.00012738,2]
[398445607,1765657923849,150.69,0.000134,2]
[398445608,1765657944431,150.0,0.00010143,2]
[398445609,1765657944637,150.0,0.00010626,2]
[398445611,1765657985219,150.69,0.000134,2]
[398445612,1765658045122,150.69,0.000134,2]
[398445613,1765658103891,150.69,0.000134,2]
[398445621,1765658642287,150.69,0.000134,2]
[398445628,1765658835089,-185.237,0.00015075,2]
[398445629,1765658835109,-51.53982547,0.00015178,2]
[398445631,1765658901960,243.23690616,0.00011814,2]
[398445632,1765658954113,-282.47122858,0.00014519,2]
[398445633,1765658954136,-125.96543029,0.00015178,2]
[398445634,1765658954157,-300.0,0.00015281,2]
[398445635,1765658954178,-1200.0,0.00015282,2]
[398445636,1765658954200,-500.0,0.00015282,2]
[398445637,1765658954220,-500.0,0.00015282,2]
[398445638,1765658954242,-500.0,0.00015282,2]
[398445639,1765658954263,-500.0,0.00015282,2]
[398445640,1765658954546,-500.0,0.00015282,2]
[398445641,1765658954568,-468.05273619,0.00015282,2]
[398445642,1765658954587,-500.0,0.00015282,2]
[398445643,1765658954608,-500.0,0.00015282,2]
[398445644,1765658954630,-500.0,0.00015282,2]
[398445645,1765658954656,-500.0,0.00015282,2]
[398445646,1765658954676,-500.0,0.00015282,2]
[398445647,1765658954696,-500.0,0.00015282,2]
[398445648,1765658954715,-500.0,0.00015282,2]
[398445649,1765658954734,-500.0,0.00015282,2]
[398445650,1765658954755,-500.0,0.00015282,2]
[398445651,1765658954778,-500.0,0.00015282,2]
[398445652,1765658954797,-500.0,0.00015282,2]
[398445653,1765658954817,-503.511112,0.00015282,2]
[398445654,1765658954837,-500.0,0.00015282,2]
[398445655,1765658954856,-500.0,0.00015282,2]
[398445656,1765658954876,-502.99862063,0.00015282,2]
[398445657,1765658954895,-711.39,0.00015373,3]
[398445658,1765658954913,-355.69,0.00015373,3]
[398445659,1765658954933,-375.21584534,0.00015382,2]
[398445660,1765658954952,-500.0,0.00015382,2]
[398445661,1765658954977,-500.0,0.00015382,2]
[398445662,1765658954997,-500.0,0.00015382,2]
[398445663,1765658955016,-305.57347942,0.00015382,2]
[398445664,1765658955036,-500.0,0.00015382,2]
[398445665,1765658955055,-500.0,0.00015382,2]
[398445666,1765658955074,-500.0,0.00015382,2]
[398445667,1765658955093,-500.0,0.00015382,2]
[398445668,1765658955112,-156432.88550815,0.00015383,2]
[398445671,1765658971105,-177.85,0.00015373,3]
[398445672,1765658971126,-533.57,0.00015373,3]
[398445673,1765658971147,-874212.47301442,0.00015383,2]
[398445698,1765659031867,-640.0,0.00015281,2]
[398445700,1765659031877,-500.0,0.00015281,2]
[398445702,1765659031887,-1200.0,0.00015382,2]
[398445704,1765659031896,-994.65772097,0.00015383,2]
[398445708,1765659031923,-1245.10276993,0.00015383,2]
[398445710,1765659031934,-2222.03497372,0.00015383,2]
[398445712,1765659031945,-1363.10722767,0.00015383,2]
[398445715,1765659031957,-385.80856207,0.00015383,2]
[398445734,1765659037929,-1566.60158843,0.00015383,2]
[398445736,1765659037985,-16612.0,0.00015383,2]
[398445766,1765659040187,-590.7960981,0.00015383,2]
[398445767,1765659040199,-315.68572925,0.00015383,2]
[398445768,1765659040421,-54760.2710912,0.00015383,2]
[398445819,1765659043243,-3479.66880487,0.00015383,2]
[398445821,1765659043255,-3043.89712044,0.00015383,2]
[398446060,1765659046005,-2272.23679476,0.00015383,2]
[398446061,1765659046113,-18778.32132879,0.00015383,2]
[398446115,1765659056474,333.0,0.00013418,2]
[398446116,1765659063228,150.7,0.000134,2]
[398446122,1765659371169,2380.0,0.000134,2]
[398446123,1765659491449,2331.0,0.000134,2]
[398446126,1765659617817,2399.0,0.000134,2]
[398446128,1765659731208,2471.0,0.000134,2]
[398446140,1765659843608,1263.0,0.000134,2]
[398446141,1765659902574,155.54,0.000134,2]
[398446157,1765659991088,-313.72046547,0.00014508,2]
[398446159,1765660027082,-212.21445,0.00013699,2]
[398446160,1765660027104,-686.27953453,0.00014508,2]
[398446161,1765660027124,-196.35968711,0.00014508,2]
[398446162,1765660027143,-628.0,0.00014508,2]
[398446163,1765660027162,-3062.17877599,0.000153,2]
[398446164,1765660027181,-300.0,0.00015341,2]
[398446165,1765660027201,-329.78363735,0.00015342,2]
[398446166,1765660027221,-222.61234578,0.00015342,2]
[398446167,1765660027240,-1200.0,0.00015342,2]
[398446168,1765660027260,-500.0,0.00015342,2]
[398446169,1765660027279,-500.0,0.00015342,2]
[398446170,1765660027297,-500.0,0.00015342,2]
[398446171,1765660027317,-500.0,0.00015342,2]
[398446172,1765660027336,-500.0,0.00015342,2]
[398446173,1765660027354,-502.99862063,0.00015342,2]
[398446174,1765660027374,-500.0,0.00015342,2]
[398446175,1765660027393,-500.0,0.00015342,2]
[398446176,1765660027412,-500.0,0.00015342,2]
[398446177,1765660027650,-500.0,0.00015342,2]
[398446178,1765660027670,-500.0,0.00015342,2]
[398446179,1765660027690,-500.0,0.00015342,2]
[398446180,1765660027709,-171.24746257,0.00015342,2]
[398446181,1765660027728,-500.0,0.00015342,2]
[398446182,1765660027746,-500.0,0.00015342,2]
[398446183,1765660027764,-500.0,0.00015342,2]
[398446184,1765660027782,-500.0,0.00015342,2]
[398446185,1765660027800,-500.0,0.00015342,2]
[398446186,1765660027819,-500.0,0.00015342,2]
[398446187,1765660027838,-353.1600008,0.00015342,2]
[398446188,1765660027856,-11552.38897551,0.00015343,2]
[398446189,1765660027875,-414.97,0.00015373,3]
[398446190,1765660027893,-207.49,0.00015373,3]
[398446191,1765660027911,-622.48,0.00015373,3]
[398446192,1765660027930,-296.41,0.00015373,3]
[398446193,1765660027948,-889.27,0.00015373,3]
[398446194,1765660027967,-1200.0,0.00015381,2]
[398446195,1765660027985,-470.67914979,0.00015382,2]
[398446196,1765660028005,-500.0,0.00015382,2]
[398446197,1765660028024,-500.0,0.00015382,2]
[398446198,1765660028044,-491.56381807,0.00015382,2]
[398446199,1765660028063,-500.0,0.00015382,2]
[398446200,1765660028083,-500.0,0.00015382,2]
[398446201,1765660028104,-500.0,0.00015382,2]
[398446202,1765660028124,-500.0,0.00015382,2]
[398446203,1765660028146,-500.0,0.00015382,2]
[398446204,1765660028167,-500.0,0.00015382,2]
[398446205,1765660028188,-500.0,0.00015382,2]
[398446206,1765660028207,-641.67204383,0.00015382,2]
[398446207,1765660028227,-500.0,0.00015382,2]
[398446208,1765660028246,-500.0,0.00015382,2]
[398446209,1765660028265,-500.0,0.00015382,2]
[398446210,1765660028284,-500.0,0.00015382,2]
[398446211,1765660028303,-500.0,0.00015382,2]
[398446212,1765660028323,-500.0,0.00015382,2]
[398446213,1765660028342,-500.0,0.00015382,2]
[398446214,1765660028365,-500.0,0.00015382,2]
[398446215,1765660028385,-500.0,0.00015382,2]
[398446216,1765660028404,-500.0,0.00015382,2]
[398446217,1765660028424,-500.0,0.00015382,2]
[398446218,1765660028447,-500.0,0.00015382,2]
[398446219,1765660028468,-500.0,0.00015382,2]
[398446220,1765660028490,-500.0,0.00015382,2]
[398446221,1765660028512,-500.0,0.00015382,2]
[398446222,1765660028533,-254.04,0.00015382,2]
[398446223,1765660028556,-2756.5575137,0.00015382,2]
[398446224,1765660028583,-396.8451691,0.00015382,2]
[398446225,1765660028604,-500.0,0.00015382,2]
[398446226,1765660028624,-500.0,0.00015382,2]
[398446227,1765660028645,-500.0,0.00015382,2]
[398446228,1765660028664,-500.0,0.00015382,2]
[398446229,1765660028683,-500.0,0.00015382,2]
[398446230,1765660028702,-500.0,0.00015382,2]
[398446231,1765660028721,-500.0,0.00015382,2]
[398446232,1765660028740,-500.0,0.00015382,2]
[398446233,1765660028759,-500.0,0.00015382,2]
[398446234,1765660028778,-500.0,0.00015382,2]
[398446235,1765660028797,-500.0,0.00015382,2]
[398446236,1765660028816,-500.0,0.00015382,2]
[398446237,1765660028836,-500.0,0.00015382,2]
[398446238,1765660028857,-500.0,0.00015382,2]
[398446239,1765660028877,-275.7,0.00015382,2]
[398446240,1765660028898,-179.906,0.00015382,2]
[398446241,1765660028919,-747486.72721624,0.00015383,2]
[398446242,1765660034091,-1097.17454289,0.00015383,2]
[398446243,1765660044322,-159854.467923,0.00015383,2]
[398446273,1765660232100,-282.47122858,0.00014798,2]
[398446275,1765660232110,-334.9686587,0.00014798,2]
[398446280,1765660232155,-297.0313413,0.00014798,2]
[398446282,1765660232165,-322.81777974,0.00015282,2]
[398446284,1765660232176,-877.18222026,0.00015282,2]
[398446286,1765660232185,-5158.15929151,0.00015283,2]
[398446343,1765660238141,-474.65,0.00015283,2]
[398446345,1765660238153,-703.52979223,0.00015283,2]
[398446347,1765660238165,-1676.412,0.00015283,2]
[398446351,1765660238197,-322.46275452,0.00015283,2]
[398446353,1765660238208,-836.55525642,0.00015283,2]
[398446391,1765660238923,-1225.38098327,0.00015283,2]
[398446392,1765660238932,-306.29,0.00015373,3]
[398446393,1765660238942,-153.14,0.00015373,3]
[398446394,1765660238951,-459.45,0.00015373,3]
[398446395,1765660238961,-300.0,0.00015381,2]
[398446396,1765660238970,-296.80527362,0.00015382,2]
[398446397,1765660238980,-650.3511112,0.00015382,2]
[398446398,1765660238990,-442.04015845,0.00015382,2]
[398446399,1765660238998,-500.0,0.00015382,2]
[398446400,1765660239008,-500.0,0.00015382,2]
[398446401,1765660239018,-443.26510333,0.00015382,2]
[398446402,1765660239028,-500.0,0.00015382,2]
[398446403,1765660239037,-500.0,0.00015382,2]
[398446404,1765660239047,-500.0,0.00015382,2]
[398446405,1765660239058,-500.0,0.00015382,2]
[398446406,1765660239067,-500.0,0.00015382,2]
[398446407,1765660239077,-81501.22563691,0.00015383,2]
[398446429,1765660240435,-315.544,0.00015383,2]
[398446664,1765660243312,-388.51668446,0.00015383,2]
[398446710,1765660246177,-17761.607547,0.00015383,2]
[398446711,1765660262842,150.69,0.000134,2]
[398446737,1765661228125,-384.33100379,0.00014365,2]
[398446739,1765661248089,-614.66899621,0.00014365,2]
[398446740,1765661248111,-204.85191603,0.00015204,2]
[398446741,1765661248133,-268.0291211,0.00015281,2]
[398446744,1765661304720,3214.5,0.00013418,2]
[398446779,1765661374105,-176.351188,0.00014495,2]
[398446780,1765661374125,-117.648812,0.00015068,2]
[398446836,1765661432261,-250.0,0.00015023,2]
[398446839,1765661432272,-77.851162,0.00015068,2]
[398446842,1765661432281,-300.0,0.00015281,2]
[398446845,1765661432291,-300.0,0.00015281,2]
[398446847,1765661432301,-300.0,0.00015281,2]
[398446850,1765661432310,-1200.0,0.00015281,2]
[398446852,1765661432320,-200.75487771,0.00015282,2]
[398446854,1765661432329,-1200.0,0.00015282,2]
[398446855,1765661432338,-390.97548925,0.00015282,2]
[398446856,1765661432348,-763.27684971,0.00015283,2]
[398446987,1765661438382,-8594.15822049,0.00015283,2]
[398446988,1765661438393,-153.14,0.00015373,3]
[398446989,1765661438406,-459.44,0.00015373,3]
[398446990,1765661438416,-4962.53571774,0.00015381,2]
[398446991,1765661438436,-3.60046196,0.00015381,2]
[398446992,1765661438446,-184.6118033,0.00015381,2]
[398446993,1765661438456,-297.6338768,0.00015381,2]
[398446994,1765661438467,-500.0,0.00015382,2]
[398446995,1765661438476,-500.0,0.00015382,2]
[398446996,1765661438486,-330.78113971,0.00015382,2]
[398446997,1765661438496,-500.0,0.00015382,2]
[398446998,1765661438506,-179.906,0.00015382,2]
[398446999,1765661438516,-46799.54667511,0.00015383,2]
[398447009,1765661440522,-390.40674426,0.00015287,2]
[398447010,1765661440532,-1506.07050983,0.00015383,2]
[398447013,1765661443510,-353.675,0.00015383,2]
[398447041,1765661516381,150.0,0.0001097,2]
[398447042,1765661516778,150.0,0.00011493,2]
[398447043,1765661517195,150.0,0.00012015,2]
[398447044,1765661517649,150.0,0.00012537,2]
[398447045,1765661518008,150.0,0.0001306,2]
[398447046,1765661583217,150.0,9.284e-05,2]
[398447060,1765661971269,-3000.0,0.00038159,120]
[398447061,1765661971311,-451388.80121999,0.00038159,30]
[398447062,1765661971355,-23969.0,0.00038159,30]
[398447063,1765661971397,-913.28741079,0.00038159,30]
[398447064,1765661971437,-1226.05652937,0.00038159,30]
[398447065,1765661971479,-880.42821795,0.00038159,120]
[398447066,1765661971516,-719.85203707,0.00038159,120]
[398447067,1765661971555,-328.59403437,0.00038159,120]
[398447068,1765661971592,-1199.20295841,0.00038159,30]
[398447069,1765661971629,-1052.37473364,0.00038159,120]
[398447070,1765661971666,-800.20406576,0.00038159,60]
[398447071,1765661971704,-1027.04137783,0.00038159,60]
[398447072,1765661971739,-1206.78130752,0.00038159,120]
[398447073,1765661971773,-354.24295614,0.00038159,120]
[398447074,1765661971818,-250.00372484,0.00038159,120]
[398447075,1765661971863,-455.53,0.00038159,120]
[398447076,1765661971907,-500.00186242,0.00038159,120]
[398447077,1765661971953,-199999.979999,0.00038159,30]
[398447078,1765661972000,-200.0,0.00038159,120]
[398447079,1765661972047,-666.77928945,0.00038159,120]
[398447080,1765661972098,-189.06911645,0.00038159,120]
[398447081,1765661972141,-1000.0,0.00038159,120]
[398447082,1765661972184,-1000.0,0.00038159,120]
[398447083,1765661972226,-1000.0,0.00038159,120]
[398447084,1765661972271,-1000.0,0.00038159,120]
[398447085,1765661972316,-1000.0,0.00038159,120]
[398447086,1765661972356,-950.3137609,0.00038159,120]
[398447087,1765661972404,-166.67300086,0.00038159,120]
[398447088,1765661972447,-836.3520319,0.00038159,120]
[398447089,1765661972493,-1384.39412149,0.00038159,120]
[398447090,1765661972537,-258.60439241,0.00038159,35]
[398447091,1765661972580,-1516.17124128,0.00038159,20]
[398447092,1765661972623,-12838.0,0.00038159,120]
[398447093,1765661972668,-2862.0,0.00038159,120]
[398447094,1765661972709,-5000.0,0.00038159,30]
[398447095,1765661972755,-57657.60816499,0.00038159,30]
[398447096,1765661972805,-500.0,0.00038159,120]
[398447097,1765661972859,-110508.58488405,0.00038159,30]
[398447098,1765661972903,-612.76449,0.00038159,120]
[398447099,1765661972949,-8871.70075658,0.00038159,30]
[398447100,1765661972993,-697.84424571,0.00038159,120]
[398447101,1765661973038,-7104.0,0.00038159,30]
[398447102,1765661973082,-5000.0,0.00038159,60]
[398447103,1765661973127,-5000.0,0.00038159,30]
[398447104,1765661973169,-3225.0,0.00038159,30]
[398447105,1765661973214,-25800.0,0.00038159,30]
[398447106,1765661973258,-3053882.75806883,0.00038159,20]
[398447107,1765661978184,-4000000.0,0.00038159,20]
[398447110,1765661984202,-3048187.01173358,0.00038159,20]
[398447111,1765661984492,-9284.36432339,0.00038159,60]
[398447112,1765661984530,-5789.9794004,0.00038159,60]
[398447113,1765661984572,-84000.0,0.00038159,32]
[398447114,1765661984611,-5024.59187422,0.00038159,30]
[398447115,1765661984653,-6736.0,0.00038159,120]
[398447116,1765661984691,-21211.8073172,0.00038159,120]
[398447117,1765661984729,-10000.0,0.00038159,60]
[398447118,1765661984767,-7500.0,0.00038159,40]
[398447119,1765661984804,-892.91120839,0.00038159,31]
[398447120,1765661984841,-1597.0,0.00038159,55]
[398447121,1765661984878,-25000.0,0.00038159,31]
[398447122,1765661984916,-2784.70794169,0.00038159,20]
[398447123,1765661984953,-150.0,0.00038159,30]
[398447124,1765661984990,-150.0,0.00038159,30]
[398447125,1765661985025,-285.63070993,0.00038159,30]
[398447126,1765661985062,-221.77870707,0.00038159,120]
[398447127,1765661985099,-4012.51284541,0.00038159,120]
[398447128,1765661985136,-353.65548326,0.00038159,30]
[398447129,1765661985171,-494.18835202,0.00038159,120]
[398447130,1765661985206,-1160.94262614,0.00038159,120]
[398447131,1765661985241,-286.40255667,0.00038159,120]
[398447132,1765661985274,-947.68945067,0.00038159,120]
[398447133,1765661985308,-2197.88268423,0.00038159,30]
[398447134,1765661985345,-399.46485777,0.00038159,120]
[398447135,1765661985381,-1004.08955052,0.00038159,120]
[398447136,1765661985420,-745.27091093,0.00038159,60]
[398447137,1765661985460,-953.47312089,0.00038159,120]
[398447138,1765661985499,-378.61270628,0.00038159,120]
[398447139,1765661985539,-317.31353622,0.00038159,30]
[398447140,1765661985578,-921.68243751,0.00038159,60]
[398447141,1765661985616,-305.65012484,0.00038159,120]
[398447142,1765661985656,-1288.37204493,0.00038159,120]
[398447143,1765661985693,-176.79521648,0.00038159,31]
[398447144,1765661985732,-1071.45537251,0.00038159,30]
[398447145,1765661985771,-485.21867477,0.00038159,30]
[398447146,1765661985813,-240.82074905,0.00038159,120]
[398447147,1765661985849,-252.01196932,0.00038159,120]
[398447148,1765661985884,-1541.23437305,0.00038159,120]
[398447149,1765661985919,-1059.39159511,0.00038159,120]
[398447150,1765661985952,-300.0,0.00038159,120]
[398447151,1765661985985,-577.14291837,0.00038159,120]
[398447152,1765661986019,-1048.85500567,0.00038159,120]
[398447153,1765661986067,-709.7665292,0.00038159,120]
[398447154,1765661986104,-452.96973606,0.00038159,30]
[398447155,1765661986142,-2697.08756621,0.00038159,120]
[398447156,1765661986178,-599.93400103,0.00038159,120]
[398447157,1765661986214,-1923.66813052,0.00038159,60]
[398447158,1765661986251,-1223.71563746,0.00038159,30]
[398447159,1765661986293,-2131.2819196,0.00038159,30]
[398447160,1765661986332,-543.63173711,0.00038159,120]
[398447161,1765661986371,-224.67474725,0.00038159,120]
[398447162,1765661986410,-329.64658259,0.00038159,120]
[398447163,1765661986450,-1304.33349507,0.00038159,120]
[398447164,1765661986487,-2327.20930715,0.00038159,60]
[398447165,1765661986526,-567.00044862,0.00038159,120]
[398447166,1765661986564,-202.03156329,0.00038159,60]
[398447167,1765661986602,-206.11131376,0.00038159,120]
[398447168,1765661986640,-455.29897434,0.00038159,60]
[398447169,1765661986679,-169.05643374,0.00038159,120]
[398447170,1765661986717,-4420.66328128,0.00038159,120]
[398447171,1765661986754,-552.63465004,0.00038159,120]
[398447172,1765661986792,-1588.2365882,0.00038159,120]
[398447173,1765661986829,-2153.22503324,0.00038159,30]
[398447174,1765661986874,-626.37746344,0.00038159,120]
[398447175,1765661986916,-32350.1101743,0.00038159,120]
[398447176,1765661986959,-320.56573035,0.00038159,120]
[398447177,1765661987001,-367.90405667,0.00038159,120]
[398447178,1765661987041,-357.88738408,0.00038159,120]
[398447179,1765661987082,-165.35294417,0.00038159,120]
[398447180,1765661987123,-1182.24938973,0.00038159,120]
[398447181,1765661987162,-1712.85777418,0.00038159,30]
[398447182,1765661987199,-177.52492565,0.00038159,120]
[398447183,1765661987237,-193.46744684,0.00038159,120]
[398447184,1765661987275,-507.9072858,0.00038159,120]
[398447185,1765661987311,-474.02977841,0.00038159,30]
[398447186,1765661987348,-627.45526489,0.00038159,120]
[398447187,1765661987386,-477.38072754,0.00038159,120]
[398447188,1765661987427,-162.76855577,0.00038159,120]
[398447189,1765661987464,-1011.04954363,0.00038159,30]
[398447190,1765661987501,-535.77845048,0.00038159,60]
[398447191,1765661987536,-235.27121418,0.00038159,30]
[398447192,1765661987571,-1008.60474447,0.00038159,60]
[398447193,1765661987608,-248.07434001,0.00038159,31]
[398447194,1765661987644,-338.41139202,0.00038159,30]
[398447195,1765661987681,-155.16270462,0.00038159,30]
[398447196,1765661987717,-742.39261513,0.00038159,120]
[398447197,1765661987755,-873.96386013,0.00038159,31]
[398447198,1765661987795,-1397.52967462,0.00038159,30]
[398447199,1765661987833,-674.28889866,0.00038159,120]
[398447200,1765661987875,-767.60479782,0.00038159,30]
[398447201,1765661987915,-482.30872693,0.00038159,31]
[398447202,1765661987954,-221.13721321,0.00038159,120]
[398447203,1765661987998,-1000.32285545,0.00038159,120]
[398447204,1765661988036,-50510.0919898,0.00038159,30]
[398447205,1765661988075,-200.03936985,0.00038159,120]
[398447206,1765661988109,-217.97998,0.00038159,60]
[398447207,1765661988369,-1964.09727538,0.00038159,60]
[398447208,1765661988409,-500.0,0.00038159,30]
[398447209,1765661988449,-500.0,0.00038159,30]
[398447210,1765661988487,-500.0,0.00038159,30]
[398447211,1765661988526,-7000.0,0.00038159,30]
[398447212,1765661988561,-2000.0,0.00038159,120]
[398447213,1765661988600,-2000.0,0.00038159,120]
[398447214,1765661988638,-1673.2853807,0.00038159,120]
[398447215,1765661988673,-823.45941862,0.00038159,20]
[398447216,1765661988706,-300.0,0.00038159,120]
[398447217,1765661988742,-300.0,0.00038159,120]
[398447222,1765662219182,1130.88722562,0.00013381,2]
[398447223,1765662221358,2008.4557127,0.00013381,2]
[398447224,1765662252261,1536.0,0.000134,2]
[398447237,1765662346232,403.75411119,0.00013381,2]
[398447240,1765662360588,460.97183666,0.00013381,2]
[398447242,1765662370814,2331.0,0.000134,2]
[398447244,1765662407217,400.0,0.00013418,2]
[398447248,1765662447084,-236.77682547,0.00013795,2]
[398447249,1765662491971,2399.0,0.000134,2]
[398447267,1765662545157,-720.0,0.00013795,2]
[398447268,1765662545178,-300.0,0.00013795,2]
[398447269,1765662545199,-210.43847121,0.00013796,2]
[398447270,1765662545219,-343.37313459,0.00013796,2]
[398447271,1765662545238,-1373.49253836,0.00013796,2]
[398447272,1765662545257,-3090.35821132,0.00013796,2]
[398447273,1765662545276,-394.40081802,0.00013796,2]
[398447274,1765662545297,-500.0,0.00014364,2]
[398447275,1765662545316,-343.05773616,0.00014364,2]
[398447276,1765662545334,-300.0,0.00014365,2]
[398447277,1765662545352,-300.0,0.00014365,2]
[398447278,1765662545370,-1200.0,0.00014365,2]
[398447279,1765662545388,-300.0,0.00014366,2]
[398447280,1765662545407,-300.0,0.00014366,2]
[398447281,1765662545428,-300.0,0.00014366,2]
[398447282,1765662545448,-300.0,0.00014366,2]
[398447283,1765662545472,-300.0,0.00014366,2]
[398447284,1765662545492,-300.0,0.00014366,2]
[398447285,1765662545513,-300.0,0.00014366,2]
[398447286,1765662545533,-300.0,0.00014366,2]
[398447287,1765662545552,-300.0,0.00014366,2]
[398447288,1765662545573,-300.0,0.00014366,2]
[398447289,1765662545593,-300.0,0.00014366,2]
[398447290,1765662545613,-300.0,0.00014366,2]
[398447291,1765662545634,-300.0,0.00014366,2]
[398447292,1765662545654,-300.0,0.00014366,2]
[398447293,1765662545674,-300.0,0.00014366,2]
[398447294,1765662545695,-427.75702557,0.00014367,2]
[398447295,1765662545715,-198.94092081,0.00014604,2]
[398447296,1765662545738,-600.0,0.00014652,2]
[398447297,1765662545758,-427.75702557,0.00014695,2]
[398447298,1765662545778,-179.90757433,0.00014998,2]
[398447299,1765662545798,-500.0,0.00014998,2]
[398447300,1765662545817,-3621.18402376,0.00015,2]
[398447313,1765662611228,2471.0,0.000134,2]
[398447335,1765662632582,-161.9022239,0.00014261,2]
[398447336,1765662632591,-110.17166471,0.00014365,2]
[398447525,1765662638608,-389.82833529,0.00014365,2]
[398447527,1765662638618,-241.28883548,0.00015,2]
[398447529,1765662638630,-1367.52714076,0.00015,2]
[398447531,1765662638639,-427.75702557,0.00015024,2]
[398447533,1765662638650,-21.66893391,0.00015102,2]
[398447536,1765662638667,-129.33106609,0.00015102,2]
[398447538,1765662638677,-150.0,0.00015102,2]
[398447540,1765662638687,-152.0,0.00015239,2]
[398447542,1765662638696,-413.6216167,0.00015256,2]
[398447544,1765662638706,-472.23770866,0.00015256,2]
[398447546,1765662638715,-300.0,0.00015299,2]
[398447548,1765662638725,-300.0,0.00015299,2]
[398447550,1765662638736,-334.0,0.00015299,2]
[398447552,1765662638745,-8421.69156318,0.000153,2]
[398447554,1765662638755,-180.48845481,0.000153,2]
[398447556,1765662638764,-427.75702557,0.00015352,2]
[398447558,1765662638773,-16165.05367374,0.00015352,2]
[398447560,1765662638782,-457.7848842,0.00015366,2]
[398447562,1765662638793,-500.0,0.00015366,2]
[398447564,1765662638803,-500.0,0.00015366,2]
[398447566,1765662638812,-500.0,0.00015366,2]
[398447568,1765662638822,-500.0,0.00015366,2]
[398447570,1765662638831,-500.0,0.00015366,2]
[398447572,1765662638840,-500.0,0.00015366,2]
[398447574,1765662638850,-500.0,0.00015366,2]
[398447575,1765662638860,-500.0,0.00015366,2]
[398447577,1765662638869,-323.37916793,0.00015366,2]
[398447579,1765662638878,-500.0,0.00015366,2]
[398447581,1765662638888,-250.0,0.00015366,2]
[398447582,1765662638898,-160.5064101,0.00015367,2]
[398447584,1765662638907,-6349.96146456,0.00015367,2]
[398447586,1765662638919,-1040.1369001,0.00015367,2]
[398447588,1765662638930,-1619.38572393,0.00015367,2]
[398447590,1765662638942,-297.2090077,0.00015367,2]
[398447591,1765662638953,-291.300155,0.00015367,2]
[398447592,1765662638965,-4979.06553641,0.00015367,2]
[398447594,1765662640862,-438.7352047,0.00015367,2]
[398447595,1765662640872,-306.28,0.00015373,3]
[398447596,1765662640881,-165.91453304,0.00015382,2]
[398447597,1765662640891,-19826.16026226,0.00015383,2]
[398447598,1765662640902,-927.8073366,0.00015383,2]
[398447599,1765662640914,-22488.50745001,0.00015383,2]
[398447600,1765662640924,-302.07506331,0.00015383,2]
[398447616,1765662641911,-429.42624312,0.00015383,2]
[398447645,1765662643692,-666.15559538,0.00015383,2]
[398447646,1765662645339,-1305399.42885968,0.00015383,2]
[398447647,1765662645352,-447.54,0.00015383,2]
[398447648,1765662645364,-2740.0,0.00015383,2]
[398447650,1765662646610,-196.42207701,0.00015256,2]
[398447651,1765662646620,-384.57792297,0.00015256,2]
[398447652,1765662646631,-401.11038507,0.00015256,2]
[398447653,1765662646641,-12629.82730581,0.00015383,2]
[398447654,1765662646674,-26243.30889867,0.00015383,2]
[398447655,1765662646685,-1762.37238713,0.00015383,2]
[398447656,1765662646697,-586.36369892,0.00015383,2]
[398447675,1765662723724,1263.0,0.000134,2]
[398447794,1765663393856,-580.9532705,0.00013545,2]